fUSD/lending_fUSD_20250123
["ID","MTS","AMOUNT","RATE_DAILY","PERIOD"]
[350050261,1737592252529,-500.0,0.00020721,2]
[350050262,1737592252538,-181.209209,0.00020721,2]
[350050263,1737592252549,-500.0,0.00020721,2]
[350050264,1737592252558,-620.2,0.00020721,2]
[350050265,1737592252571,-500.0,0.00020721,2]
[350050266,1737592252585,-385.441377,0.00020721,2]
[350050267,1737592252594,-500.0,0.00020721,2]
[350050268,1737592252604,-617.03,0.00020721,2]
[350050269,1737592252613,-788.164308,0.00020721,2]
[350050270,1737592252622,-605.88,0.00020721,2]
[350050271,1737592252631,-546.81,0.00020721,2]
[350050272,1737592252640,-500.0,0.00020721,2]
[350050273,1737592252650,-500.0,0.00020721,2]
[350050274,1737592252661,-880.62,0.00020721,2]
[350050275,1737592252670,-1375.57,0.00020721,2]
[350050276,1737592252680,-541.89,0.00020721,2]
[350050277,1737592252689,-543.97,0.00020721,2]
[350050278,1737592252698,-500.0,0.00020721,2]
[350050279,1737592252708,-558.2,0.00020721,2]
[350050280,1737592252719,-868.4,0.00020721,2]
[350050281,1737592252731,-500.0,0.00020721,2]
[350050282,1737592252742,-731.71,0.00020721,2]
[350050283,1737592252751,-442.776508,0.00020721,2]
[350050284,1737592252760,-500.0,0.00020721,2]
[350050285,1737592252770,-539.36986137,0.00020721,2]
[350050286,1737592252781,-500.0,0.00020721,2]
[350050287,1737592252791,-500.0,0.00020721,2]
[350050288,1737592252800,-500.0,0.00020721,2]
[350050289,1737592252809,-2862.43,0.00020721,2]
[350050290,1737592252819,-1177.65,0.00020721,2]
[350050291,1737592252828,-558.04,0.00020721,2]
[350050292,1737592252838,-1521.24,0.00020721,2]
[350050293,1737592252848,-242.79621349,0.00020721,2]
[350050294,1737592252858,-780.39,0.00020721,2]
[350050295,1737592252868,-447.267534,0.00020721,2]
[350050296,1737592252878,-735.41,0.00020721,2]
[350050297,1737592252888,-500.0,0.00020721,2]
[350050298,1737592252897,-1402.72,0.00020721,2]
[350050299,1737592252907,-500.0,0.00020721,2]
[350050300,1737592252916,-1541.3,0.00020721,2]
[350050301,1737592252925,-1064.8,0.00020721,2]
[350050302,1737592252934,-500.0,0.00020721,2]
[350050303,1737592252943,-1725.09,0.00020721,2]
[350050304,1737592252953,-345.21233891,0.00020721,2]
[350050305,1737592252963,-500.0,0.00020721,2]
[350050306,1737592252972,-195.45,0.00020721,2]
[350050307,1737592252981,-1097.56,0.00020721,2]
[350050308,1737592252992,-500.0,0.00020721,2]
[350050309,1737592253001,-500.0,0.00020721,2]
[350050310,1737592253010,-1237.37,0.00020721,2]
[350050311,1737592253019,-263.125614,0.00020721,2]
[350050312,1737592253028,-756.58,0.00020721,2]
[350050313,1737592253039,-326.89316965,0.00020721,2]
[350050314,1737592253048,-2412.85,0.00020721,2]
[350050315,1737592253057,-500.0,0.00020721,2]
[350050316,1737592253067,-500.0,0.00020721,2]
[350050317,1737592253076,-500.0,0.00020721,2]
[350050318,1737592253086,-500.0,0.00020721,2]
[350050319,1737592253096,-1879.24,0.00020721,2]
[350050320,1737592253106,-500.0,0.00020721,2]
[350050321,1737592253116,-500.0,0.00020721,2]
[350050322,1737592253126,-689.77,0.00020721,2]
[350050323,1737592253135,-755.39,0.00020721,2]
[350050324,1737592253145,-271.813812,0.00020721,2]
[350050325,1737592253154,-514.18,0.00020721,2]
[350050326,1737592253164,-1758.63,0.00020721,2]
[350050327,1737592253173,-500.0,0.00020721,2]
[350050328,1737592253182,-500.0,0.00020721,2]
[350050329,1737592253192,-615.8,0.00020721,2]
[350050330,1737592253201,-500.0,0.00020721,2]
[350050331,1737592253210,-500.0,0.00020721,2]
[350050332,1737592253219,-502.3,0.00020721,2]
[350050333,1737592253228,-742.49,0.00020721,2]
[350050334,1737592253239,-500.0,0.00020721,2]
[350050335,1737592253253,-957.33,0.00020721,2]
[350050336,1737592253263,-1045.68,0.00020721,2]
[350050337,1737592253273,-500.0,0.00020721,2]
[350050338,1737592253283,-157.875369,0.00020721,2]
[350050339,1737592253293,-1134.72,0.00020721,2]
[350050340,1737592253302,-1402.15,0.00020721,2]
[350050341,1737592253312,-500.0,0.00020721,2]
[350050342,1737592253322,-522.7,0.00020721,2]
[350050343,1737592253331,-1310.68,0.00020721,2]
[350050344,1737592253341,-500.0,0.00020721,2]
[350050345,1737592253350,-743.32,0.00020721,2]
[350050346,1737592253359,-3097.06,0.00020721,2]
[350050347,1737592253369,-181.209208,0.00020721,2]
[350050348,1737592253378,-500.0,0.00020721,2]
[350050349,1737592253387,-1346.31,0.00020721,2]
[350050350,1737592253399,-500.0,0.00020721,2]
[350050351,1737592253409,-5482.58,0.00020721,2]
[350050352,1737592253418,-2248.49,0.00020721,2]
[350050353,1737592253427,-500.0,0.00020721,2]
[350050354,1737592253437,-842.65,0.00020721,2]
[350050355,1737592253446,-500.0,0.00020721,2]
[350050356,1737592253457,-500.0,0.00020721,2]
[350050357,1737592253466,-1128.96,0.00020721,2]
[350050358,1737592253479,-500.0,0.00020721,2]
[350050359,1737592253491,-1154.82,0.00020721,2]
[350050360,1737592253500,-2161.8,0.00020721,2]
[350050361,1737592253509,-500.0,0.00020721,2]
[350050362,1737592253519,-157.875368,0.00020721,2]
[350050363,1737592253527,-838.78,0.00020721,2]
[350050364,1737592253536,-500.0,0.00020721,2]
[350050365,1737592253546,-1058.0,0.00020721,2]
[350050366,1737592253556,-500.0,0.00020721,2]
[350050367,1737592253567,-1595.19,0.00020721,2]
[350050368,1737592253579,-2441.82,0.00020721,2]
[350050369,1737592253588,-500.0,0.00020721,2]
[350050370,1737592253597,-181.20921,0.00020721,2]
[350050371,1737592253607,-500.0,0.00020721,2]
[350050372,1737592253617,-500.0,0.00020721,2]
[350050373,1737592253627,-500.0,0.00020721,2]
[350050374,1737592253636,-500.0,0.00020721,2]
[350050375,1737592253647,-1029.0,0.00020721,2]
[350050376,1737592253657,-500.0,0.00020721,2]
[350050377,1737592253666,-3432.96,0.00020721,2]
[350050378,1737592253675,-500.0,0.00020721,2]
[350050379,1737592253685,-1475.44,0.00020721,2]
[350050380,1737592253695,-1427.47,0.00020721,2]
[350050381,1737592253705,-500.0,0.00020721,2]
[350050382,1737592253715,-500.0,0.0002074,2]
[350050383,1737592253724,-200.0,0.00020783,2]
[350050384,1737592253734,-14561.54588704,0.00020785,2]
[350050385,1737592253749,-14561.54588704,0.00020788,2]
[350050386,1737592253759,-61173.14330387,0.00020795,2]
[350050387,1737592253768,-200.0,0.00020811,2]
[350050388,1737592253777,-200.0,0.00020814,2]
[350050389,1737592253787,-9475.1390251,0.00020815,2]
[350050390,1737592253796,-500.0,0.0002082,2]
[350050391,1737592253805,-500.0,0.0002082,2]
[350050392,1737592253815,-500.0,0.0002082,2]
[350050393,1737592253824,-219.5963345,0.0002082,2]
[350050394,1737592253833,-500.0,0.0002082,2]
[350050395,1737592253842,-500.0,0.0002082,2]
[350050396,1737592253851,-500.0,0.0002082,2]
[350050397,1737592253861,-500.0,0.0002082,2]
[350050398,1737592253870,-1145.83,0.0002082,2]
[350050399,1737592253880,-428.04951952,0.0002082,2]
[350050400,1737592253890,-500.0,0.0002082,2]
[350050401,1737592253900,-1000.0,0.0002082,2]
[350050402,1737592253910,-1034.62,0.0002082,2]
[350050403,1737592253921,-500.0,0.0002082,2]
[350050404,1737592253932,-500.0,0.0002082,2]
[350050405,1737592253941,-1736.32,0.0002082,2]
[350050406,1737592253951,-500.0,0.0002082,2]
[350050407,1737592253961,-1943.36,0.0002082,2]
[350050408,1737592253971,-500.0,0.0002082,2]
[350050409,1737592253982,-500.0,0.0002082,2]
[350050410,1737592253998,-344.69,0.0002082,2]
[350050411,1737592254008,-500.0,0.0002082,2]
[350050412,1737592254018,-512.06,0.0002082,2]
[350050413,1737592254027,-500.0,0.0002082,2]
[350050414,1737592254037,-500.0,0.0002082,2]
[350050415,1737592254046,-500.0,0.0002082,2]
[350050416,1737592254056,-500.0,0.0002082,2]
[350050417,1737592254065,-500.0,0.0002082,2]
[350050418,1737592254075,-500.0,0.0002082,2]
[350050419,1737592254084,-500.0,0.0002082,2]
[350050420,1737592254093,-500.0,0.0002082,2]
[350050421,1737592254103,-500.0,0.0002082,2]
[350050422,1737592254112,-500.0,0.0002082,2]
[350050423,1737592254121,-500.0,0.0002082,2]
[350050424,1737592254131,-500.0,0.0002082,2]
[350050425,1737592254140,-500.0,0.0002082,2]
[350050426,1737592254149,-500.0,0.0002082,2]
[350050427,1737592254158,-500.0,0.0002082,2]
[350050428,1737592254168,-500.0,0.0002082,2]
[350050429,1737592254177,-500.0,0.0002082,2]
[350050430,1737592254187,-500.0,0.0002082,2]
[350050431,1737592254196,-500.0,0.0002082,2]
[350050432,1737592254206,-500.0,0.0002082,2]
[350050433,1737592254216,-500.0,0.0002082,2]
[350050434,1737592254225,-526.46664265,0.0002082,2]
[350050435,1737592254235,-169.47702878,0.0002082,2]
[350050436,1737592254248,-500.0,0.0002082,2]
[350050437,1737592254257,-500.0,0.0002082,2]
[350050438,1737592254267,-500.0,0.0002082,2]
[350050439,1737592254277,-500.0,0.0002082,2]
[350050440,1737592254287,-500.0,0.00020821,2]
[350050441,1737592254297,-1660.3,0.00020821,2]
[350050442,1737592254307,-853.57,0.00020821,2]
[350050443,1737592254317,-1744.85,0.00020821,2]
[350050444,1737592254326,-664.0,0.00020821,2]
[350050445,1737592254335,-1360.36,0.00020821,2]
[350050446,1737592254344,-513.67,0.00020821,2]
[350050447,1737592254353,-500.0,0.00020821,2]
[350050448,1737592254363,-1129.74,0.00020821,2]
[350050449,1737592254372,-727.16,0.00020821,2]
[350050450,1737592254381,-556.07478483,0.00020821,2]
[350050451,1737592254390,-2069.38,0.00020821,2]
[350050452,1737592254399,-1143.31,0.00020821,2]
[350050453,1737592254408,-500.0,0.00020821,2]
[350050454,1737592254419,-774.63,0.00020821,2]
[350050455,1737592254431,-500.0,0.00020821,2]
[350050456,1737592254441,-1961.81,0.00020821,2]
[350050457,1737592254454,-500.0,0.00020821,2]
[350050458,1737592254463,-867.24,0.00020821,2]
[350050459,1737592254474,-747.21,0.00020821,2]
[350050460,1737592254483,-721.36,0.00020821,2]
[350050461,1737592254496,-500.0,0.00020821,2]
[350050462,1737592254506,-500.0,0.00020821,2]
[350050463,1737592254515,-1210.11,0.00020821,2]
[350050464,1737592254524,-500.0,0.00020821,2]
[350050465,1737592254534,-500.0,0.00020821,2]
[350050466,1737592254543,-2848.13,0.00020821,2]
[350050467,1737592254553,-500.0,0.00020821,2]
[350050468,1737592254563,-500.0,0.00020821,2]
[350050469,1737592254572,-500.0,0.00020821,2]
[350050470,1737592254586,-514.44893361,0.00020821,2]
[350050471,1737592254595,-500.0,0.00020821,2]
[350050472,1737592254605,-500.0,0.00020821,2]
[350050473,1737592254615,-500.0,0.00020821,2]
[350050474,1737592254627,-632.13817176,0.00020821,2]
[350050475,1737592254637,-500.0,0.00020821,2]
[350050476,1737592254646,-1602.8,0.00020821,2]
[350050477,1737592254656,-500.0,0.00020821,2]
[350050478,1737592254665,-14561.54588704,0.00020835,2]
[350050479,1737592254676,-3430.2604288,0.00020839,2]
[350050480,1737592254689,-9475.1390251,0.00020852,2]
[350050481,1737592254702,-9475.1390251,0.00020854,2]
[350050482,1737592254712,-9475.1390251,0.0002086,2]
[350050483,1737592254723,-214.02466953,0.00020866,2]
[350050484,1737592254733,-200.0,0.00020869,2]
[350050485,1737592254747,-61173.14330387,0.00020872,2]
[350050486,1737592254756,-3430.2604288,0.00020872,2]
[350050487,1737592254765,-9475.1390251,0.00020872,2]
[350050488,1737592254774,-3430.2604288,0.00020873,2]
[350050489,1737592254783,-61173.14330387,0.00020884,2]
[350050490,1737592254793,-14561.54588704,0.00020893,2]
[350050491,1737592254802,-61173.14330387,0.00020897,2]
[350050492,1737592254811,-3506.50842384,0.000209,2]
[350050493,1737592254820,-160.489,0.000209,2]
[350050494,1737592254829,-200.0,0.00020911,2]
[350050495,1737592254839,-61173.14330387,0.00020923,2]
[350050496,1737592254848,-3430.2604288,0.0002093,2]
[350050497,1737592254857,-14561.54588704,0.00020947,2]
[350050498,1737592254867,-3430.2604288,0.00020949,2]
[350050499,1737592254877,-200.0,0.0002095,2]
[350050500,1737592254888,-500.0,0.00020994,2]
[350050501,1737592254898,-500.0,0.00020995,2]
[350050502,1737592254908,-500.0,0.00020995,2]
[350050503,1737592254918,-547.21,0.00020995,2]
[350050504,1737592254928,-500.0,0.00020995,2]
[350050505,1737592254944,-414.102346,0.00020995,2]
[350050506,1737592254953,-500.0,0.00020995,2]
[350050507,1737592254964,-372.406306,0.00020995,2]
[350050508,1737592254973,-500.0,0.00020995,2]
[350050509,1737592254983,-500.0,0.00020995,2]
[350050510,1737592254994,-500.0,0.00020995,2]
[350050511,1737592255004,-500.0,0.00020995,2]
[350050512,1737592255013,-500.0,0.00020995,2]
[350050513,1737592255023,-500.0,0.00020995,2]
[350050514,1737592255033,-500.0,0.00020995,2]
[350050515,1737592255043,-500.0,0.00020995,2]
[350050516,1737592255053,-500.0,0.00020995,2]
[350050517,1737592255062,-500.0,0.00020995,2]
[350050518,1737592255072,-500.0,0.00020995,2]
[350050519,1737592255081,-500.0,0.00020995,2]
[350050520,1737592255091,-620.2,0.00020995,2]
[350050521,1737592255100,-500.0,0.00020995,2]
[350050522,1737592255110,-385.441377,0.00020995,2]
[350050523,1737592255124,-500.0,0.00020995,2]
[350050524,1737592255134,-617.03,0.00020995,2]
[350050525,1737592255143,-788.164308,0.00020995,2]
[350050526,1737592255153,-605.88,0.00020995,2]
[350050527,1737592255163,-546.81,0.00020995,2]
[350050528,1737592255172,-500.0,0.00020995,2]
[350050529,1737592255182,-500.0,0.00020995,2]
[350050530,1737592255191,-1375.57,0.00020995,2]
[350050531,1737592255201,-880.62,0.00020995,2]
[350050532,1737592255211,-541.89,0.00020995,2]
[350050533,1737592255221,-543.97,0.00020995,2]
[350050534,1737592255230,-558.2,0.00020995,2]
[350050535,1737592255240,-500.0,0.00020995,2]
[350050536,1737592255253,-868.4,0.00020995,2]
[350050537,1737592255263,-500.0,0.00020995,2]
[350050538,1737592255272,-731.71,0.00020995,2]
[350050539,1737592255282,-442.776508,0.00020995,2]
[350050540,1737592255294,-500.0,0.00020995,2]
[350050541,1737592255304,-500.0,0.00020995,2]
[350050542,1737592255313,-500.0,0.00020995,2]
[350050543,1737592255323,-500.0,0.00020995,2]
[350050544,1737592255332,-2862.43,0.00020995,2]
[350050545,1737592255342,-558.04,0.00020995,2]
[350050546,1737592255351,-1177.65,0.00020995,2]
[350050547,1737592255361,-1521.24,0.00020995,2]
[350050548,1737592255370,-780.39,0.00020995,2]
[350050549,1737592255380,-447.267534,0.00020995,2]
[350050550,1737592255390,-735.41,0.00020995,2]
[350050551,1737592255400,-500.0,0.00020995,2]
[350050552,1737592255410,-1402.72,0.00020995,2]
[350050553,1737592255421,-500.0,0.00020995,2]
[350050554,1737592255432,-1541.3,0.00020995,2]
[350050555,1737592255443,-1064.8,0.00020995,2]
[350050556,1737592255454,-500.0,0.00020995,2]
[350050557,1737592255464,-1725.09,0.00020995,2]
[350050558,1737592255474,-500.0,0.00020995,2]
[350050559,1737592255484,-1097.56,0.00020995,2]
[350050560,1737592255495,-500.0,0.00020995,2]
[350050561,1737592255504,-500.0,0.00020995,2]
[350050562,1737592255513,-1237.37,0.00020995,2]
[350050563,1737592255649,-263.125614,0.00020995,2]
[350050564,1737592255689,-756.58,0.00020995,2]
[350050565,1737592255698,-2412.85,0.00020995,2]
[350050566,1737592255708,-500.0,0.00020995,2]
[350050567,1737592255718,-500.0,0.00020995,2]
[350050568,1737592255728,-500.0,0.00020995,2]
[350050569,1737592255738,-1879.24,0.00020995,2]
[350050570,1737592255751,-500.0,0.00020995,2]
[350050571,1737592255761,-500.0,0.00020995,2]
[350050572,1737592255771,-689.77,0.00020995,2]
[350050573,1737592255781,-755.39,0.00020995,2]
[350050574,1737592255791,-514.18,0.00020995,2]
[350050575,1737592255800,-271.813812,0.00020995,2]
[350050576,1737592255810,-1758.63,0.00020995,2]
[350050577,1737592255819,-500.0,0.00020995,2]
[350050578,1737592255828,-500.0,0.00020995,2]
[350050579,1737592255838,-615.8,0.00020995,2]
[350050580,1737592255847,-500.0,0.00020995,2]
[350050581,1737592255856,-500.0,0.00020995,2]
[350050582,1737592255866,-502.3,0.00020995,2]
[350050583,1737592255876,-742.49,0.00020995,2]
[350050584,1737592255885,-500.0,0.00020995,2]
[350050585,1737592255895,-957.33,0.00020995,2]
[350050586,1737592255905,-1045.68,0.00020995,2]
[350050587,1737592255915,-500.0,0.00020995,2]
[350050588,1737592255925,-157.875369,0.00020995,2]
[350050589,1737592255935,-1134.72,0.00020995,2]
[350050590,1737592255944,-1402.15,0.00020995,2]
[350050591,1737592255954,-500.0,0.00020995,2]
[350050592,1737592255963,-522.7,0.00020995,2]
[350050593,1737592255974,-1310.68,0.00020995,2]
[350050594,1737592255984,-500.0,0.00020995,2]
[350050595,1737592255996,-743.32,0.00020995,2]
[350050596,1737592256006,-3097.06,0.00020995,2]
[350050597,1737592256015,-181.209208,0.00020995,2]
[350050598,1737592256025,-500.0,0.00020995,2]
[350050599,1737592256035,-1346.31,0.00020995,2]
[350050600,1737592256045,-500.0,0.00020995,2]
[350050601,1737592256056,-5482.58,0.00020995,2]
[350050602,1737592256066,-2248.49,0.00020995,2]
[350050603,1737592256075,-500.0,0.00020995,2]
[350050604,1737592256086,-842.65,0.00020995,2]
[350050605,1737592256095,-500.0,0.00020995,2]
[350050606,1737592256105,-500.0,0.00020995,2]
[350050607,1737592256116,-1128.96,0.00020995,2]
[350050608,1737592256125,-500.0,0.00020995,2]
[350050609,1737592256136,-1154.82,0.00020995,2]
[350050610,1737592256146,-2161.8,0.00020995,2]
[350050611,1737592256155,-500.0,0.00020995,2]
[350050612,1737592256165,-157.875368,0.00020995,2]
[350050613,1737592256174,-838.78,0.00020995,2]
[350050614,1737592256183,-500.0,0.00020995,2]
[350050615,1737592256193,-1058.0,0.00020995,2]
[350050616,1737592256203,-500.0,0.00020995,2]
[350050617,1737592256213,-1595.19,0.00020995,2]
[350050618,1737592256223,-2441.82,0.00020995,2]
[350050619,1737592256232,-500.0,0.00020995,2]
[350050620,1737592256241,-500.0,0.00020995,2]
[350050621,1737592256251,-500.0,0.00020995,2]
[350050622,1737592256261,-500.0,0.00020995,2]
[350050623,1737592256270,-500.0,0.00020995,2]
[350050624,1737592256280,-1029.0,0.00020995,2]
[350050625,1737592256289,-500.0,0.00020995,2]
[350050626,1737592256299,-3432.96,0.00020995,2]
[350050627,1737592256309,-1475.44,0.00020995,2]
[350050628,1737592256318,-1427.47,0.00020995,2]
[350050629,1737592256328,-418.9605331,0.00021077,2]
[350050630,1737592256337,-500.0,0.00021094,2]
[350050631,1737592256346,-264.88305994,0.00021094,2]
[350050632,1737592256356,-500.0,0.00021094,2]
[350050633,1737592256365,-500.0,0.00021094,2]
[350050634,1737592256375,-154.42910908,0.00021094,2]
[350050635,1737592256385,-500.0,0.00021094,2]
[350050636,1737592256395,-1145.83,0.00021094,2]
[350050637,1737592256405,-500.0,0.00021094,2]
[350050638,1737592256416,-1000.0,0.00021094,2]
[350050639,1737592256427,-1034.62,0.00021094,2]
[350050640,1737592256440,-500.0,0.00021094,2]
[350050641,1737592256451,-500.0,0.00021094,2]
[350050642,1737592256462,-1736.32,0.00021094,2]
[350050643,1737592256479,-1943.36,0.00021094,2]
[350050644,1737592256490,-500.0,0.00021094,2]
[350050645,1737592256501,-500.0,0.00021094,2]
[350050646,1737592256511,-500.0,0.00021094,2]
[350050647,1737592256521,-500.0,0.00021094,2]
[350050648,1737592256530,-500.0,0.00021094,2]
[350050649,1737592256541,-500.0,0.00021094,2]
[350050650,1737592256552,-500.0,0.00021094,2]
[350050651,1737592256562,-500.0,0.00021094,2]
[350050652,1737592256572,-500.0,0.00021094,2]
[350050653,1737592256584,-500.0,0.00021094,2]
[350050654,1737592256593,-500.0,0.00021094,2]
[350050655,1737592256604,-268.22849662,0.00021094,2]
[350050656,1737592256614,-500.0,0.00021094,2]
[350050657,1737592256624,-517.1690949,0.00021094,2]
[350050658,1737592256635,-500.0,0.00021094,2]
[350050659,1737592256646,-251.41905559,0.00021094,2]
[350050660,1737592256657,-500.0,0.00021094,2]
[350050661,1737592256668,-500.0,0.00021094,2]
[350050662,1737592256678,-500.0,0.00021094,2]
[350050663,1737592256691,-521.17323948,0.00021094,2]
[350050664,1737592256701,-500.0,0.00021094,2]
[350050665,1737592256712,-500.0,0.00021094,2]
[350050666,1737592256724,-500.0,0.00021094,2]
[350050667,1737592256735,-500.0,0.00021094,2]
[350050668,1737592256748,-500.0,0.00021094,2]
[350050669,1737592256757,-500.0,0.00021094,2]
[350050670,1737592256766,-500.0,0.00021095,2]
[350050671,1737592256775,-1660.3,0.00021095,2]
[350050672,1737592256785,-853.57,0.00021095,2]
[350050673,1737592256798,-1744.85,0.00021095,2]
[350050674,1737592256808,-664.0,0.00021095,2]
[350050675,1737592256818,-1360.36,0.00021095,2]
[350050676,1737592256828,-513.67,0.00021095,2]
[350050677,1737592256838,-1129.74,0.00021095,2]
[350050678,1737592256849,-727.16,0.00021095,2]
[350050679,1737592256859,-2069.38,0.00021095,2]
[350050680,1737592256868,-1143.31,0.00021095,2]
[350050681,1737592256877,-500.0,0.00021095,2]
[350050682,1737592256887,-774.63,0.00021095,2]
[350050683,1737592256897,-500.0,0.00021095,2]
[350050684,1737592256908,-1961.81,0.00021095,2]
[350050685,1737592256919,-500.0,0.00021095,2]
[350050686,1737592256929,-867.24,0.00021095,2]
[350050687,1737592256939,-747.21,0.00021095,2]
[350050688,1737592256950,-721.36,0.00021095,2]
[350050689,1737592256961,-500.0,0.00021095,2]
[350050690,1737592256973,-500.0,0.00021095,2]
[350050691,1737592256983,-1210.11,0.00021095,2]
[350050692,1737592256995,-500.0,0.00021095,2]
[350050693,1737592257005,-500.0,0.00021095,2]
[350050694,1737592257014,-2848.13,0.00021095,2]
[350050695,1737592257023,-500.0,0.00021095,2]
[350050696,1737592257033,-500.0,0.00021095,2]
[350050697,1737592257042,-500.0,0.00021095,2]
[350050698,1737592257053,-500.0,0.00021095,2]
[350050699,1737592257063,-500.0,0.00021095,2]
[350050700,1737592257073,-500.0,0.00021095,2]
[350050701,1737592257083,-500.0,0.00021095,2]
[350050702,1737592257092,-1602.8,0.00021095,2]
[350050703,1737592257101,-500.0,0.00021095,2]
[350050704,1737592257110,-1000.0,0.00021123,2]
[350050705,1737592257119,-418.9605331,0.00021146,2]
[350050706,1737592257128,-550.0,0.00021164,2]
[350050707,1737592257137,-214.02466953,0.0002121,2]
[350050708,1737592257147,-500.0,0.00021269,2]
[350050709,1737592257155,-547.21,0.00021269,2]
[350050710,1737592257165,-500.0,0.00021269,2]
[350050711,1737592257174,-226.55959943,0.00021269,2]
[350050712,1737592257184,-500.0,0.00021269,2]
[350050713,1737592257193,-500.0,0.00021269,2]
[350050714,1737592257203,-500.0,0.00021269,2]
[350050715,1737592257212,-500.0,0.00021269,2]
[350050716,1737592257221,-500.0,0.00021269,2]
[350050717,1737592257231,-500.0,0.00021269,2]
[350050718,1737592257240,-500.0,0.00021269,2]
[350050719,1737592257251,-616.92514872,0.00021269,2]
[350050720,1737592257261,-500.0,0.00021269,2]
[350050721,1737592257269,-500.0,0.00021269,2]
[350050722,1737592257279,-500.0,0.00021269,2]
[350050723,1737592257288,-500.0,0.00021269,2]
[350050724,1737592257297,-620.2,0.00021269,2]
[350050725,1737592257307,-500.0,0.00021269,2]
[350050726,1737592257316,-500.0,0.00021269,2]
[350050727,1737592257325,-617.03,0.00021269,2]
[350050728,1737592257335,-605.88,0.00021269,2]
[350050729,1737592257345,-546.81,0.00021269,2]
[350050730,1737592257354,-500.0,0.00021269,2]
[350050731,1737592257363,-500.0,0.00021269,2]
[350050732,1737592257374,-1375.57,0.00021269,2]
[350050733,1737592257384,-880.62,0.00021269,2]
[350050734,1737592257395,-541.89,0.00021269,2]
[350050735,1737592257405,-543.97,0.00021269,2]
[350050736,1737592257416,-558.2,0.00021269,2]
[350050737,1737592257426,-500.0,0.00021269,2]
[350050738,1737592257436,-868.4,0.00021269,2]
[350050739,1737592257447,-500.0,0.00021269,2]
[350050740,1737592257457,-731.71,0.00021269,2]
[350050741,1737592257467,-500.0,0.00021269,2]
[350050742,1737592257478,-500.0,0.00021269,2]
[350050743,1737592257489,-500.0,0.00021269,2]
[350050744,1737592257503,-500.0,0.00021269,2]
[350050745,1737592257513,-2862.43,0.00021269,2]
[350050746,1737592257522,-1177.65,0.00021269,2]
[350050747,1737592257531,-558.04,0.00021269,2]
[350050748,1737592257540,-1521.24,0.00021269,2]
[350050749,1737592257550,-780.39,0.00021269,2]
[350050750,1737592257560,-735.41,0.00021269,2]
[350050751,1737592257574,-500.0,0.00021269,2]
[350050752,1737592257583,-1402.72,0.00021269,2]
[350050753,1737592257592,-500.0,0.00021269,2]
[350050754,1737592257601,-1541.3,0.00021269,2]
[350050755,1737592257611,-1064.8,0.00021269,2]
[350050756,1737592257620,-500.0,0.00021269,2]
[350050757,1737592257629,-1725.09,0.00021269,2]
[350050758,1737592257638,-295.27,0.00021269,2]
[350050759,1737592257647,-1097.56,0.00021269,2]
[350050760,1737592257656,-619.79276718,0.00021269,2]